Cogmind - Beta 13 @@@ ROGUE MODE // 2024.04.18 @ 02:07:45 Player: Cherman0 Result: Self-destructed Performance ------------- Evolutions (3) 1500 Regions Visited (5) 1000 Robots Destroyed (120) 600 Value Destroyed (3569) 3569 Prototype IDs (22) 440 Alien Tech Used (0) 0 Bonus (157) 157 TOTAL SCORE: 7266 Bonus ------- High Alert Combat Kills 183 Friendly Fire -26 Cogmind --------- Core Integrity 532/700 Matter 52/300 Energy 180/180 System Corruption 1% Temperature Hot (290) Movement Treading (233) Ox1 Location -7/Factory Parts ------- > --- POWER (1) -------- Meta Core > --- PROPULSION (5+1) - Armored Treads Advanced Treads Advanced Treads Improved Carbon-fiber Leg > --- UTILITY (5) ------ Huge Storage Unit Improved Terrain Scanner Advanced Terrain Scan Processor Improved Medium Armor Plating Sensor Drone Bay (17/20) > --- WEAPON (2) ------- Heavy Ion Cannon > --- INVENTORY (25) --- Light Nuclear Core High-capacity Matter Pod (200) Weapon Cycler Heavy Armor Plating Hardened Light Armor Plating Hardened Light Armor Plating Improved Medium Armor Plating Ion Cannon Gauss Cannon Gauss Cannon Heavy Missile Launcher Precision Grenade Launcher Improved Datajack Plasma Cutter Heavy Mace Peak State ------------ > --- POWER ------------ Meta Core > --- PROPULSION ------- Armored Treads Armored Treads Armored Treads Advanced Treads Advanced Treads > --- UTILITY ---------- Large Storage Unit Improved Terrain Scanner Advanced Terrain Scan Processor Powered Armor Hardlight Generator Sensor Drone Bay > --- WEAPON ----------- Assault Cannon Gauss Cannon Precision Grenade Launcher > --- INVENTORY -------- Light Nuclear Core Advanced Treads Advanced Treads High-capacity Matter Pod Heavy Armor Plating Hardened Light Armor Plating Hardened Light Armor Plating Ion Cannon Gauss Cannon Gauss Cannon Heavy Missile Launcher Datajack Plasma Cutter Heavy Mace [Rating: 67] Favorites ----------- Power Ion Engine Engine Ion Engine Power Core Meta Core Propulsion Armored Treads Treads Armored Treads Leg Improved Carbon-fiber Leg Wheel Wheel Flight Unit Improved Flight Unit Utility Large Storage Unit Device Sensor Drone Bay Storage Large Storage Unit Processor Advanced Terrain Scan Processor Hackware Hacking Suite Protection Hardened Medium Armor Plating Weapon Subdweller Shrapnel Launcher Energy Gun Subdweller Laser Energy Cannon Beam Cannon Ballistic Gun Subdweller Machine Gun Ballistic Cannon Assault Cannon Launcher Subdweller Shrapnel Launcher Impact Weapon Heavy Mace Special Melee Weapon Datajack Build | -11 -10 -10 -10 -8 -7 ------- Run | Yrd Mat Min Sub Mat Fac Slots Evolved 6 | . . . . 4 2 Power . | . . . . . . Propulsion 3 | . . . . 2 1 Utility 3 | . . . . 2 1 Weapon . | . . . . . . Parts Attached 120 | 4 13 2 19 48 34 Power 3 | . 1 . 1 1 . Engine 2 | . 1 . 1 . . Core 1 | . . . . 1 . Reactor . | . . . . . . Propulsion 27 | 2 3 . 4 11 7 Treads 21 | 2 2 . 1 10 6 Leg 1 | . . . . . 1 Wheel 4 | . 1 . 3 . . Hover . | . . . . . . Flight 1 | . . . . 1 . Utility 37 | 1 2 1 2 14 17 Device 17 | 1 . 1 1 8 6 Storage 2 | . 1 . . . 1 Processor 2 | . . . . . 2 Hackware 2 | . . . . . 2 Protection 14 | . 1 . 1 6 6 Artifact . | . . . . . . Weapon 53 | 1 7 1 12 22 10 Energy Gun 3 | . . . 1 2 . Energy Cannon 10 | . 1 . 1 5 3 Ballistic Gun 3 | 1 . . 1 1 . Ballistic Cannon 15 | . 4 . 4 6 1 Launcher 10 | . . 1 3 4 2 Special Weapon . | . . . . . . Impact Weapon 8 | . . . 2 4 2 Slashing Weapon . | . . . . . . Piercing Weapon . | . . . . . . Special Melee Weapon 4 | . 2 . . . 2 Unidentified Prototypes 6 | . . 1 . 4 1 Parts Lost 12 | . . . 4 1 7 Power 2 | . . . 1 1 . Propulsion 6 | . . . 2 . 4 Utility 2 | . . . . . 2 Weapon 2 | . . . 1 . 1 Highest Loss Streak 4 | . . . 2 1 4 To Critical Strikes . | . . . . . . Average Slot Usage (%) 95 | . 99 100 98 93 88 Engine 9 | . 14 14 14 5 . Core 1 | . . . . 2 6 Treads 25 | . 27 28 20 27 29 Wheel 2 | . . . 5 2 . Device 12 | . 2 12 13 14 15 Storage 11 | . 14 14 14 8 6 Protection 5 | . 11 1 . 12 6 Energy Gun 1 | . . . 3 . . Energy Cannon 4 | . 5 14 1 3 4 Ballistic Gun 2 | . . . 6 . . Ballistic Cannon 6 | . 20 . 2 7 8 Launcher 6 | . . 13 13 2 . Impact Weapon 1 | . . . . 5 1 Naked Turns . | . . . . . . Heaviest Build 123 | 13 34 45 55 72 123 Greatest Support 106 | 40 40 40 40 86 106 Greatest Overweight (x) 3 | . 3 1 2 2 1 Average Overweight (x) . | . . . 1 . . Largest Inventory Capacity 25 | 8 15 15 15 15 25 Average Capacity 15 | 8 14 15 15 15 16 Most Carried 16 | 7 15 15 15 15 16 Average Carried 14 | 6 12 14 14 14 14 Final Capacity 25 | 8 15 15 15 15 25 Final Carried 16 | 7 15 15 15 15 16 Class Distribution -------------------- 97% | Mutant Dominant Class ---------------- Mutant | -10/Materials Mutant | -10/Mines Mutant | -10/Subcaves Mutant | -8/Materials Mutant | -7/Factory Resources | -11 -10 -10 -10 -8 -7 ----------- Run | Yrd Mat Min Sub Mat Fac Matter Collected 2996 | 260 418 73 418 1246 581 Remotely . | . . . . . . Salvage Created 3136 | 127 420 1 389 1428 771 Parts 187 | 9 39 2 30 66 41 Haulers Intercepted 7 | . 2 . . 5 . Recyclers Shooed . | . . . . . . Parts Field Recycled . | . . . . . . Retrieved Matter . | . . . . . . Parts Self-Destructed 8 | . . . 8 . . Prevented . | . . . . . . Kills | -11 -10 -10 -10 -8 -7 ------- Run | Yrd Mat Min Sub Mat Fac Combat Hostiles Destroyed 85 | . 10 . 17 37 21 Melee 2 | . . . . 1 1 Guns 5 | . . . 5 . . Cannons 43 | . 10 . 1 19 13 AOE 30 | . . . 11 13 6 Classes Destroyed 16 | 2 6 . 1 4 3 Worker 7 | . 1 . . 3 3 Builder 4 | . . . . 2 2 Tunneler 3 | 2 . 1 . . . Hauler 7 | . 2 . . 5 . Recycler 4 | 1 1 . . 1 1 Operator 2 | . 1 . . . 1 Watcher 8 | . 3 . . 3 2 Swarmer 23 | . 6 . 3 10 4 Grunt 33 | . 4 . . 18 11 Brawler 1 | . . . . . 1 Duelist 1 | . . . . 1 . Sentry 7 | . . . . 6 1 Specialist 2 | . . . . 2 . Hunter 1 | . . . . . 1 Programmer 3 | . . . . . 3 Subdweller 14 | . . . 14 . . Best Kill Streak 15 | 1 4 1 3 7 15 Combat Bots Only 10 | . 3 . 3 6 10 Max Kills in Single Turn 4 | 1 2 1 2 3 4 Gunslinging . | . . . . . . Exploded 3 | . . . 2 3 2 Melee 1 | . . . . 1 1 Uniques/NPCs Destroyed . | . . . . . . Combat | -11 -10 -10 -10 -8 -7 -------- Run | Yrd Mat Min Sub Mat Fac Hostile Shots Fired 460 | . 43 . 46 174 197 Missed 125 | . 10 . 16 54 45 Damage Taken 4990 | . 282 . 900 1534 2274 Core 501 | . 19 . 225 89 168 Absorbed by Shields 256 | . . . . 208 48 Regen/Repaired (Parts) 94 | . 94 . . . . Core Remaining (%) 61 | 100 . . 2 83 . Volleys Fired 266 | 10 33 . 53 89 81 Largest 2 | 2 2 . 2 2 2 Hottest 124 | 70 95 . 95 124 113 Shots Fired 340 | 20 66 . 60 94 100 Gun 53 | 20 . . 33 . . Cannon 256 | . 66 . 12 83 95 Launcher 31 | . . . 15 11 5 Special . | . . . . . . Kinetic 227 | 10 62 . 34 53 68 Thermal 100 | 10 4 . 18 41 27 Explosive 13 | . . . 8 . 5 Electromagnetic . | . . . . . . Robot Hit Streak 12 | 8 7 . 7 10 12 Robot Miss Streak 7 | 1 4 . 3 7 3 Penetration Max 1 | . . . . . 1 Secondary Targets . | . . . . . . Shots Hit Robots 240 | 16 37 . 38 82 67 Core Hits 148 | 4 18 . 27 59 40 Critical Kills 1 | . . . . 1 . Critical Parts Destroyed 7 | . . . 1 5 1 Critical Strikes 16 | . 1 . 1 7 7 Meltdown 1 | . . . . 1 . Destroy 1 | . . . 1 . . Blast 8 | . 1 . . 1 6 Smash 6 | . . . . 5 1 Melee Attacks 80 | . 4 . 6 46 24 Impact 72 | . . . 6 46 20 Slashing . | . . . . . . Piercing . | . . . . . . Sneak Attacks 17 | . 4 . . 9 4 Combat Hostiles 2 | . . . . 2 . Follow-up Attacks . | . . . . . . Damage Inflicted 10225 | 196 703 11 1465 4673 3177 Guns 664 | 196 . . 468 . . Cannons 3700 | . 694 . 126 1255 1625 Explosions 3623 | . . . 823 1670 1130 Melee 2210 | . . . 48 1740 422 Ramming 28 | . 9 11 . 8 . Kinetic 5016 | 109 641 . 791 2285 1190 Thermal 1453 | 87 53 . 264 614 435 Explosive 1518 | . . . 362 26 1130 Electromagnetic . | . . . . . . Impact 2210 | . . . 48 1740 422 Slashing . | . . . . . . Piercing . | . . . . . . Highest Corruption 4 | . . . . 4 4 Average Corruption 3 | . . . . 4 3 Corruption Purged 4 | . . . . . 4 Corruption Blocked . | . . . . . . Effects 51 | . . . . 19 32 Message Errors 8 | . . . . 2 6 Matter Fused 11 | . . . . 3 8 Heat Flow Errors 5 | . . . . 2 3 Energy Discharges 10 | . . . . 2 8 Data Loss (minor) 11 | . . . . 7 4 Data Loss (major) 3 | . . . . 3 . Misfires 2 | . . . . . 2 Alerts 1 | . . . . . 1 Overload Shots . | . . . . . . Overflow Damage 959 | . 22 . . 760 177 Projectiles 114 | . 22 . . 28 64 Explosions 57 | . . . . 25 32 Melee 788 | . . . . 707 81 Knockbacks 34 | . 8 . 4 10 12 Impact 11 | . . . 1 7 3 Kinetic 23 | . 8 . 3 3 9 Secondary . | . . . . . . Self-Inflicted Damage 282 | . . . 34 55 193 Shots 9 | . . . 2 2 5 Rammed 8 | . 2 3 . 3 . Targets Rammed 9 | . 2 4 . 3 . Kicked . | . . . . . . Crushed 1 | . . 1 . . . Highest Temperature 355 | 45 144 . . 304 355 Average Temperature 77 | 20 37 . . 87 100 Received Heat Transfer 1254 | . 27 . 60 553 614 Effects 1 | . . . . . 1 Shutdowns 1 | . . . . . 1 Siege Activations . | . . . . . . Robots Corrupted . | . . . . . . Combat Hostiles . | . . . . . . Parts Fried 13 | . . . . 9 4 Impact Corruptions 27 | . . . . 21 6 Robots Melted 1 | . . . . 1 . Combat Hostiles 1 | . . . . 1 . Parts Melted 5 | 1 . . 1 2 1 Heat Transferred 2076 | 259 111 . 300 814 592 Parts Sabotaged . | . . . . . . Parts Stolen . | . . . . . . Parts Stripped . | . . . . . . Power Chain Reactions . | . . . . . . Alert | -11 -10 -10 -10 -8 -7 ------- Run | Yrd Mat Min Sub Mat Fac Peak Influence 687 | 15 179 25 . 687 455 Initial 260 | . 9 25 . . 260 Average 203 | 7 80 5 . 333 270 Maximum Alert Level 2 | . . . . 2 2 Low Security (%) 56 | 100 100 100 . 36 17 Level 1 25 | . . . . 14 81 Level 2 18 | . . . . 49 1 Level 3 . | . . . . . . Level 4 . | . . . . . . Level 5 . | . . . . . . High Security . | . . . . . . Max Security . | . . . . . . Squads Dispatched 10 | . 1 . . 5 4 Investigation 1 | . . . . 1 . Extermination 3 | . . . . . 3 Reinforcement 5 | . 1 . . 3 1 Assault . | . . . . . . Garrison 1 | . . . . 1 . Intercept . | . . . . . . Searches Triggered . | . . . . . . Construction Impeded 2 | . . . . 1 1 Haulers Reinforced . | . . . . . . Active Scanning Responses . | . . . . . . Cargo Convoy Interrupts . | . . . . . . Stealth | -11 -10 -10 -10 -8 -7 --------- Run | Yrd Mat Min Sub Mat Fac Distress Signals 11 | . 2 . . 8 1 Communications Jammed . | . . . . . . Distress Signals . | . . . . . . Times Spotted 117 | . 18 . 14 55 30 Peak Tracking Total 11 | . 4 . 3 6 11 Tactical Retreats 11 | . 1 . . 9 1 Traps | -11 -10 -10 -10 -8 -7 ------- Run | Yrd Mat Min Sub Mat Fac Traps Triggered 6 | . . . 2 . 4 Indirectly . | . . . . . . Trap Hack Attempts 27 | . 6 . . . 21 Triggered 1 | . . . . . 1 Disarmed 2 | . 1 . . . 1 Reprogrammed . | . . . . . . Reused . | . . . . . . Traps Extracted . | . . . . . . Installed . | . . . . . . Triggered . | . . . . . . Machines | -11 -10 -10 -10 -8 -7 ---------- Run | Yrd Mat Min Sub Mat Fac Machines Disabled 14 | . 4 . 1 2 7 Max in Single Turn 4 | . 1 . 1 1 4 Garrison Access 1 | . . . . 1 . Machines Repaired . | . . . . . . Machines Dismantled . | . . . . . . Machines Sabotaged . | . . . . . . Overloaded Fab Kills . | . . . . . . Hacking | -11 -10 -10 -10 -8 -7 --------- Run | Yrd Mat Min Sub Mat Fac Machines Accessed 32 | . 10 1 2 9 10 Terminals 19 | . 7 . . 6 6 Fabricators 1 | . . . . . 1 Repair Stations 3 | . 1 . . 1 1 Recycling Units 3 | . 2 . . . 1 Scanalyzers 2 | . . . . 1 1 Garrison Access 1 | . . . . 1 . Total Hacks 91 | . 30 1 12 24 24 Successful 56 | . 18 1 12 15 10 Failed 35 | . 12 . . 9 14 Catastrophic 3 | . . . . . 3 Database Lockouts . | . . . . . . Manual 33 | . 17 . . 5 11 Terminals 47 | . 16 . . 17 14 Fabricators 2 | . . . . . 2 Repair Stations 11 | . 6 . . 3 2 Recycling Units 12 | . 8 . . . 4 Scanalyzers 5 | . . . . 3 2 Garrison Access 1 | . . . . 1 . Terminal Hacks 32 | . 6 1 12 8 5 Record 12 | . . . 11 . 1 Part Schematic 1 | . . . . . 1 Robot Analysis 2 | . 2 . . . . Prototype ID Bank 5 | . 3 . . 1 1 Open Door 1 | . . 1 . . . Fabricator Index 1 | . . . . . 1 Alert Level 3 | . . . . 3 . Unreport Threat 2 | . . . . 2 . Transport Status 1 | . . . . 1 . Hauler Manifests 2 | . 1 . . . 1 Registered Components 1 | . . . . 1 . Derelict Proto ID Bank 1 | . . . 1 . . Fabricator Hacks 1 | . . . . . 1 Load Schematic 1 | . . . . . 1 Repair Station Hacks 6 | . 5 . . 1 . Scan Component 4 | . 3 . . 1 . Repair 2 | . 2 . . . . Recycling Unit Hacks . | . . . . . . Scanalyzer 5 | . . . . 3 2 Insert Component 3 | . . . . 2 1 Analyze 2 | . . . . 1 1 Garrison Access Hacks 1 | . . . . 1 . Seal Access 1 | . . . . 1 . Unauthorized Hacks 11 | . 7 . . 2 2 Terminals 4 | . 2 . . 2 . Botnet 4 | . 2 . . 2 . Fabricators . | . . . . . . Repair Stations . | . . . . . . Recycling Units 7 | . 5 . . . 2 Reject 3 | . 2 . . . 1 Recyclers 2 | . 1 . . . 1 Mask 2 | . 2 . . . . Scanalyzers . | . . . . . . Garrison Access . | . . . . . . Data Cores Recovered 1 | . . . . . 1 Used . | . . . . . . Hacking Detections 26 | . 10 . . 7 9 Full Trace Events 3 | . 2 . . 1 . Feedback Events . | . . . . . . Feedback Blocked . | . . . . . . Robot Schematics Acquired . | . . . . . . Robots Built . | . . . . . . Authchips . | . . . . . . Time . | . . . . . . Total Robot Build Rating . | . . . . . . Part Schematics Acquired 3 | . . . . 1 2 Parts Built . | . . . . . . Authchips . | . . . . . . Time . | . . . . . . Total Part Build Rating . | . . . . . . Parts Repaired 2 | . 2 . . . . Time 62 | . 62 . . . . Parts Recycled . | . . . . . . Recycled Matter . | . . . . . . Retrieved Matter . | . . . . . . Retrieved Components . | . . . . . . Parts Scanalyzed 2 | . . . . 1 1 Part Schematics Acquired 2 | . . . . 1 1 Parts Damaged . | . . . . . . Bothacking | -11 -10 -10 -10 -8 -7 ------------ Run | Yrd Mat Min Sub Mat Fac Used RIF Installer . | . . . . . . Robots Hacked 5 | . 2 . . . 3 Non-combat 5 | . 2 . . . 3 Combat . | . . . . . . Robot Hacks Applied 6 | . 2 . . . 4 parse_system 3 | . 2 . . . 1 no_distress 2 | . . . . . 2 find_recycling 1 | . . . . . 1 Relay Couplers Released . | . . . . . . Fabnet Peak Effective % . | . . . . . . Robots Rewired . | . . . . . . Allies Hacked . | . . . . . . Hacks Repelled . | . . . . . . Allies | -11 -10 -10 -10 -8 -7 -------- Run | Yrd Mat Min Sub Mat Fac Total Allies 1 | . . 1 . . . Largest Group 1 | . . 1 . . . Highest-Rated Group 31 | . . 31 . . . Highest-Rated Ally 31 | . . 31 . . . Total Orders 60 | . . 12 14 19 15 STAY 8 | . . 2 . 3 3 FOLLOW 6 | . . 1 . 2 3 EXPLORE 25 | . . 4 11 6 4 RETURN 21 | . . 5 3 8 5 Ally Attacks . | . . . . . . Total Damage . | . . . . . . Kills . | . . . . . . Allies Corrupted . | . . . . . . Allies Melted . | . . . . . . Intel | -11 -10 -10 -10 -8 -7 ------- Run | Yrd Mat Min Sub Mat Fac Robot Analysis Total 2 | . 2 . . . . Derelict Logs Recovered 3 | . . 2 1 . . Drone Launches 63 | . . 7 14 23 19 Drone Recoveries 60 | . . 6 14 22 18 Exploration | -11 -10 -10 -10 -8 -7 ------------- Run | Yrd Mat Min Sub Mat Fac Turns Passed 13832 | 87 1581 2013 4318 3438 2395 Spaces Moved 5690 | 32 801 706 1753 1305 1093 Core . | . . . . . . Treads 5004 | 32 786 706 1082 1305 1093 Legs . | . . . . . . Wheels 686 | . 15 . 671 . . Hover . | . . . . . . Flight . | . . . . . . Fastest Speed 125 | 160 125 160 130 151 155 Average Speed 192 | 160 159 225 218 180 168 Slowest Speed 360 | 160 240 240 360 360 237 Overloaded Moves . | . . . . . . Propulsion Burnouts . | . . . . . . Robots Hopped . | . . . . . . Cave-ins Triggered . | . . . . . . Exploration Rate (%) 67 | 5 98 98 93 82 26 Regions Visited 5 Branch Regions 2 Pre-discovered Areas 3 | . . . 3 . . Known Exits Taken 3 | . . 1 1 1 . Unknown Exits Taken 2 | 1 1 . . . . Scrap Searched 18 | . . 2 16 . . Spaces Dug 47 | . . . 1 27 19 Terrain Destroyed 363 | . . . 124 182 57 Melee 16 | . . . 1 9 6 Projectile 46 | . . . . 25 21 AOE 301 | . . . 123 148 30 Terrain Rammed . | . . . . . . Walls Destroyed . | . . . . . . Machines Disabled . | . . . . . . Actions | -11 -10 -10 -10 -8 -7 --------- Run | Yrd Mat Min Sub Mat Fac Total 8108 | 46 1036 1124 2175 2208 1519 Wait 1773 | . 153 408 306 674 232 Move 5685 | 31 800 705 1752 1304 1093 Hop . | . . . . . . Pick Up 67 | 1 15 2 19 16 14 Fast Attach 34 | 1 3 1 3 12 14 Attach 19 | . 1 . 3 5 10 Detach 3 | . . . . 1 2 Swap 67 | 3 9 1 13 31 10 Drop 78 | . 10 3 20 27 18 Fire 266 | 10 33 . 53 89 81 Melee 80 | . 4 . 6 46 24 Ram . | . . . . . . Kick . | . . . . . . Crush 9 | . 2 4 . 3 . Escape Stasis . | . . . . . . Rewire . | . . . . . . Trap 27 | . 6 . . . 21 Miscellaneous . | . . . . . . Route ------- -11/Scrapyard -10/Materials (discovered 5 exits: *Mat x3 / *Min / *Sub) -10/Mines (discovered 3 exits: *Mat x2 / *Sub) -10/Subcaves (discovered 2 exits: *Mat x2) -8/Materials (discovered 3 exits: *Fac x3) -7/Factory (discovered 2 exits: *Fac / *Low) History --------- Turn | Location | Event 21 | -11/Scrapyard | Discovered new exit (range 3) 88 | -11/Scrapyard | Entered Materials 214 | -10/Materials | Discovered new exit (range 15) 303 | -10/Materials | Build established: Mutant 761 | -10/Materials | Discovered new exit (range 9) 1145 | -10/Materials | Discovered new exit (range 16) 1385 | -10/Materials | Discovered new exit (range 3) 1465 | -10/Materials | Repaired Lgt. Treads 1503 | -10/Materials | Repaired Broken Lgt. Treads 1574 | -10/Materials | Discovered new exit (range 10) 1669 | -10/Materials | Entered Mines 1674 | -10/Mines | Discovered new exit (range 7) 1677 | -10/Mines | Received a Mining Laser from a helpful Derelict 1757 | -10/Mines | Found a hidden stash of uninstalled traps 1862 | -10/Mines | Discovered new exit (range 15) 1876 | -10/Mines | Found the Drone Emporium 1882 | -10/Mines | Found Prototype Device 1882 | -10/Mines | Identified Sensor Drone Bay 2075 | -10/Mines | Discovered new exit (range 4) 2658 | -10/Mines | Learned Materials terminal intel 2995 | -10/Mines | Learned location of 1 exit from Materials 3522 | -10/Mines | Identified exit to Materials 3676 | -10/Mines | Identified exit to Subcaves 3682 | -10/Mines | Entered Subcaves 3682 | -10/Subcaves | Accompanied by 1 ally 3694 | -10/Subcaves | Learned Materials garrison access intel 3908 | -10/Subcaves | Disturbed a concealed Subdweller 4298 | -10/Subcaves | A swath of the cavern ceiling suddenly collapsed 4320 | -10/Subcaves | Discovered new exit (range 87) 4449 | -10/Subcaves | Ambushed by Subdwellers from Twisted Machinery 4508 | -10/Subcaves | Core integrity fell below 50% 4575 | -10/Subcaves | Discovered new exit (range 31) 4584 | -10/Subcaves | Identified exit to Materials 4631 | -10/Subcaves | Visited 4L-MR0's lab 4697 | -10/Subcaves | Found Meta Core 5707 | -10/Subcaves | Shifting Twisted Machinery released Sub. Laser 5720 | -10/Subcaves | Shifting Twisted Machinery released Battle Cannon 5742 | -10/Subcaves | Shifting Twisted Machinery released Sub. Shrapnel Launcher 5821 | -10/Subcaves | Core integrity fell below 20% 5889 | -10/Subcaves | Learned location of Zion (-6) 5889 | -10/Subcaves | Met a Zionite searching for "candidates" 6234 | -10/Subcaves | Visited Clippyterm 6237 | -10/Subcaves | Learned location of Deep Caves (-6) 6237 | -10/Subcaves | Learned location of Section 7 (-2) 8000 | -10/Subcaves | Entered Materials 8000 | -8/Materials | Accompanied by 1 ally 8000 | -8/Materials | Evolved 4 slots: Propulsion x2, Utility x2 8001 | -8/Materials | Identified exit to Factory 8002 | -8/Materials | Loaded intel: 12 terminal locations 8003 | -8/Materials | Loaded intel: 1 garrison access location 9208 | -8/Materials | Discovered exit to Factory (range 54) 9898 | -8/Materials | Discovered exit to Factory (range 16) 10263 | -8/Materials | Garrison activated, responded to threat 10274 | -8/Materials | Attached Meta Core, gained temporary slots: Propulsion, Utility, Weapon 11438 | -8/Materials | Entered Factory 11438 | -7/Factory | Accompanied by 1 ally 11438 | -7/Factory | Evolved 2 slots: Propulsion x1, Utility x1 11523 | -7/Factory | Discovered new exit (range 35) 11604 | -7/Factory | Identified exit to Factory 11800 | -7/Factory | Found Powered Armor 11837 | -7/Factory | Build established: Hacker-Mutant 12142 | -7/Factory | Build established: Mutant 12292 | -7/Factory | Destroyed 10 combat bots 12302 | -7/Factory | Lost 4 parts (2n2u) 12647 | -7/Factory | Discovered new exit (range 40) 12880 | -7/Factory | Identified exit to Lower Caves 13833 | -7/Factory | Self-destructed Last Messages --------------- 13813_ Destroyed Lgt. Nuclear Core. 13813_ G-47 Trooper knocked back. 13815_ Sensor Drone retrieved by Sensor Drone Bay. 13816_ Slug penetrates G-47 Trooper. 13816_ G-47 Trooper destroyed. 13816_ K-01 Serf collects debris. 13819_ Manufacturing Mainframe disabled. 13820_ K-01 Serf collects debris. 13823_ G-47 Trooper Aluminum Leg blasted off. 13824_ R-06 Scavenger collects Hvy. Laser. 13825_ G-47 Trooper knocked back. 13825_ Arm. Treads destroyed. 13827_ K-01 Serf collects debris. 13827_ G-47 Trooper knocked back. 13827_ R-06 Scavenger collects Aluminum Leg. 13829_ Slug penetrates Wall. 13829_ R-06 Scavenger knocked back. 13830_ K-01 Serf collects debris. 13831_ Gauss Cannon destroyed. [Achievement: Just Browsing] Map ----- +----------------------------------------------------+ | #??????????????#####?###?##??????????????????????? | | ?????????????#?#######?#?#???????????????????????? | | #??#?????#?#?####?###?#???#?#????????????????????? | | #??#????#??#?#####??#####?##?????????????????????? | | ?##??????#?###??#?###??##???#???#????????????????? | | ?##???#?#######?###??##########??????????????????? | | ?#?#????#?#?#?##?#######?###?####????????????????? | | #??#??##?####################??###???????????????? | | ?#?????##?#####################??#???????????????? | | ###?#####?#?####?##?##############???????????????? | | #############################?#####??????????????? | | #####################################????????????? | | ####################################?????????????? | | #####################################????????????? | | ########## #################??????????? | | ########## "" ##################?????????? | | ########## "" " " " " ###############?##?????????? | | ########## "" " " " " #################?##???????? | | ########## "Y " " " " # """" ##########???????? | | ########## "" " " " " # """" ######?##????????? | | ########## "" " " " " # """" ##?#######???????? | | # "" " "^" " # """ ##########???????? | | # " " " " # #####? ??????? | | " "^" " " # [g ##### ???????? | | "" """" # * " " " " # %!]%k ##### ? ?????? | | "" """" # # @%g % ##### """??????? | | "" """" ###########+######/######### """ ?????? | | "" """" # %% ! # ""? ?????? | | "" """" # % # ??????? | | "" """" # """ !!! # ""???????? | | "" """" # ""F"" r !! # ""? ? ???? | | # "" "" !! # ""? ?????? | | # # ?? ???????? | | ######+###]] ####?##??????? | | ### ] ?? ??????? | | ### ?????????? | | ### ????????? | | ### ???????? | | ??????? | | #### ########### ######### ???????? | | #### # # # = # ???????? | | #### # # ? # ? ?? """"" ?????????? | | #### # """ ? ? ? "? ???????"??????????????? | | #### # """ """ ? ?? ? ???"???????? ????????????? | | #### #?"? ??"?# ??? ???????????????????????????? | | ##### # ?"" ?"? ?????????????????????????????????? | | ##?## # ?"? ????????????????????????????????????? | | ###?# #? ? ????????????????????????????????????? | | #??## #?+#????#??????????????????????????????????? | | ?##??+#? #???????????????????????????????????????? | +----------------------------------------------------+ Best States ------------- Heat Dissipation 34 Energy Generation 17 Energy Capacity 250 Matter Stores 300 Matter Capacity 300 Sight Range 16 Terrain Scan Range 16 Terrain Scan Density 210 Armor Coverage 1000 Weapon Cycling 15 Evasion (%) 40 Recoil Reduction 5 Offensive Hacking 10 Defensive Hacking 10 Item Schematics ----------------- Adv. Treads | -8/Materials | Scanalyzed Imp. Medium Armor Plating | -7/Factory | Hacked Gauss Cannon | -7/Factory | Scanalyzed Robot Schematics ------------------ None Fabricated ------------ Nothing Alien Tech Used ----------------- None Achievements -------------- Dramatic Entrance Just Browsing Challenges ------------ None Game ------ Seed BlastGuidanceSpecial Manual? 0 Play Time 02:54:28 Cumulative 36.1 hours Start 2024.04.16 @ 18:28:54 End 2024.04.18 @ 02:07:45 Sessions 3 Manual Loads 0 Difficulty Rogue Special Mode None Game No. 24 Rogue 24 Adventurer 0 Explorer 0 Win Type - Total 0 Types 0/0/0/0/0/0/0/0/0 Lore% 24 Gallery% 26 Achievement% 23 Wizard Run 0 Options --------- Layout 0 ASCII 0 Keyboard 0 Movement Numpad Keybinds 1 Fullscreen 1 Font 18/SmallcapsGlow Map View 76x50 Zoom Use 0% Tactical HUD 1 Map Filters NONE Filters NONE Steam 1 RUN: f7533c49-8c88-4089-a27b-6522470f7507